bitfinex-derivatives/quotes_SOLF0:USTF0_20260202
["timestamp","ask_amount","ask_price","bid_price","bid_amount"]
[1770009067023,75.74058228,99.548,99.449,140.9363]
[1770009067227,75.74058228,99.539,99.445,140.9421]
[1770009067629,75.74058228,99.539,99.445,150.0027]
[1770009067926,75.74058228,99.539,99.456,140.9273]
[1770009068329,140.8157,99.536,99.423,400.56]
[1770009068525,75.73752326,99.507,99.406,140.9985]
[1770009068927,75.73752326,99.501,99.403,400.56]
[1770009069229,75.73752326,99.499,99.403,400.56]
[1770009069432,75.73752326,99.492,99.394,141.0152]
[1770009069622,75.73752326,99.479,99.382,9.0663]
[1770009069827,75.73752326,99.479,99.394,141.0144]
[1770009070027,75.73752326,99.479,99.396,141.0125]
[1770009070222,75.73752326,99.479,99.385,141.0278]
[1770009070431,75.73752326,99.479,99.399,141.0083]
[1770009070832,75.73752326,99.479,99.41,140.9923]
[1770009071029,75.73752326,99.479,99.404,141.0011]
[1770009071230,75.73752326,99.479,99.405,140.9987]
[1770009071729,75.73752326,99.479,99.373,141.045]
[1770009071934,75.73752326,99.479,99.383,141.0303]
[1770009072538,75.76819823,99.45,99.34,141.0917]
[1770009073024,75.76819823,99.45,99.334,400.82]
[1770009073025,75.76819823,99.45,99.352,141.0745]
[1770009073227,75.76819823,99.439,99.352,141.0745]
[1770009073537,75.76819823,99.439,99.365,141.056]
[1770009074225,75.78522408,99.462,99.365,141.056]
[1770009074625,75.78522408,99.462,99.377,141.0383]
[1770009074824,75.78522408,99.462,99.371,141.0473]
[1770009075529,75.78522408,99.462,99.381,141.0327]
[1770009075727,75.78522408,99.462,99.391,141.0186]
[1770009075932,75.78522408,99.462,99.372,141.0465]
[1770009075933,75.79203721,99.485,99.401,141.0042]
[1770009076330,75.79203721,99.485,99.392,541.9783]
[1770009076926,75.79203721,99.509,99.427,140.9686]
[1770009077130,75.79203721,99.534,99.435,140.9573]
[1770009077324,8.3717725,99.54,99.428,401.06]
[1770009077325,75.79203721,99.523,99.428,401.06]
[1770009077533,75.79203721,99.521,99.435,140.9561]
[1770009078039,75.80416996,99.516,99.428,401.06]
[1770009078328,75.80416996,99.516,99.403,141.0015]
[1770009078329,75.80416996,99.504,99.411,401.08]
[1770009078835,75.80416996,99.488,99.394,141.0146]
[1770009079032,75.80416996,99.488,99.399,141.0071]
[1770009079228,75.80416996,99.488,99.397,141.011]
[1770009079924,75.80416996,99.488,99.406,140.9971]
[1770009080325,75.80416996,99.488,99.41,140.9927]
[1770009080529,75.80416996,99.488,99.41,150.0564]
[1770009081126,17.4256725,99.52,99.411,140.9907]
[1770009081127,75.80325984,99.519,99.411,140.9907]
[1770009081327,75.80325984,99.519,99.428,140.9667]
[1770009081533,75.80325984,99.519,99.437,140.9536]
[1770009081930,75.80325984,99.519,99.428,140.9667]
[1770009082129,75.80325984,99.519,99.429,140.9653]
[1770009082632,75.80305369,99.515,99.419,140.9794]
[1770009082838,75.80305369,99.513,99.413,140.9876]
[1770009083337,75.80305369,99.49,99.394,141.0153]
[1770009083538,75.80305369,99.49,99.397,141.0102]
[1770009084629,140.8853,99.486,99.394,401.16]
[1770009084834,75.79831199,99.485,99.394,401.16]
[1770009085635,75.79831199,99.484,99.394,401.16]
[1770009085836,75.79831199,99.484,99.394,542.175]
[1770009086238,75.79831199,99.484,99.409,140.9939]
[1770009086440,75.79831199,99.484,99.4,141.0061]
[1770009086641,75.79831199,99.484,99.41,140.9927]
[1770009087046,75.79831199,99.484,99.41,150.0565]
[1770009087340,75.79831199,99.484,99.41,150.0558]
[1770009088035,75.79831199,99.484,99.41,9.0638]
[1770009088443,75.79831199,99.484,99.41,150.0561]
[1770009089139,75.79831199,99.484,99.396,9.065]
[1770009089443,75.79831199,99.484,99.4,141.0062]
[1770009089644,75.79831199,99.484,99.394,141.0151]
[1770009089842,75.79831199,99.484,99.395,141.0133]
[1770009090142,75.79831199,99.484,99.405,140.9996]
[1770009090639,75.79831199,99.484,99.409,9.0639]
[1770009090847,75.79831199,99.484,99.409,140.9942]
[1770009091041,75.79831199,99.484,99.408,140.9948]
[1770009091436,75.81201154,99.506,99.4,8.3717725]
[1770009091640,75.81201154,99.506,99.424,140.9727]
[1770009093241,75.81201154,99.506,99.424,9.0625]
[1770009093853,9.0553,99.503,99.424,9.0625]
[1770009094043,75.81201154,99.506,99.424,9.0625]
[1770009094241,75.81201154,99.506,99.424,150.0348]
[1770009094643,75.81201154,99.506,99.436,9.0614]
[1770009094951,75.81201154,99.506,99.431,140.9623]
[1770009095246,75.81201154,99.506,99.44,140.9498]
[1770009095449,75.81201154,99.506,99.447,9.0603]
[1770009095748,75.78091273,99.529,99.447,149.9998]
[1770009095945,75.78091273,99.55,99.468,140.9096]
[1770009096344,75.78091273,99.55,99.476,9.0577]
[1770009097144,75.78091273,99.55,99.489,9.0566]
[1770009097546,75.77257746,99.569,99.503,9.0553]
[1770009099751,75.77257746,99.569,99.476,542.1581]
[1770009099752,75.77257746,99.562,99.47,401.22]
[1770009099947,75.77257746,99.562,99.478,140.8955]
[1770009100248,75.77257746,99.562,99.492,9.0563]
[1770009101352,75.78225724,99.559,99.479,9.0575]
[1770009102052,75.77654453,99.557,99.479,9.0575]
[1770009102252,75.77654453,99.552,99.465,9.0587]
[1770009103348,75.77654453,99.552,99.483,140.8892]
[1770009103551,75.77654453,99.584,99.499,140.8664]
[1770009103856,75.77422942,99.58,99.494,149.9288]
[1770009104044,75.77422942,99.58,99.494,140.8727]
[1770009104249,75.77422942,99.58,99.498,140.8669]
[1770009104546,75.77422942,99.58,99.509,9.0547]
[1770009105058,75.77422942,99.58,99.513,140.8466]
[1770009105952,75.75415123,99.61,99.525,140.8297]
[1770009106148,75.75415123,99.61,99.542,140.8057]
[1770009106347,75.75415123,99.639,99.563,140.7757]
[1770009106651,75.75415123,99.639,99.547,401.1]
[1770009106848,30.02,99.638,99.547,401.1]
[1770009107048,75.73102867,99.623,99.524,401.1]
[1770009107252,75.73102867,99.617,99.514,401.1]
[1770009107656,75.73102867,99.606,99.515,9.0542]
[1770009108955,75.73102867,99.606,99.529,140.8242]
[1770009109149,75.73102867,99.606,99.515,140.8441]
[1770009109150,75.73102867,99.606,99.533,140.8177]
[1770009109455,75.73102867,99.631,99.579,140.7535]
[1770009109653,75.73102867,99.631,99.549,140.7957]
[1770009109654,75.73102867,99.658,99.565,140.7732]
[1770009110349,75.73102867,99.658,99.561,140.7778]
[1770009110550,75.73102867,99.658,99.581,140.7501]
[1770009110851,75.73102867,99.656,99.573,9.0489]
[1770009111256,75.73102867,99.647,99.545,276.72]
[1770009111452,75.73102867,99.647,99.507,18.26059143]
[1770009111453,75.73102867,99.616,99.514,140.8447]
[1770009111657,75.73102867,99.612,99.524,140.8307]
[1770009111855,75.73102867,99.612,99.539,140.8093]
[1770009112056,75.73102867,99.612,99.541,9.0518]
[1770009112355,75.73102867,99.612,99.5,8.3717725]
[1770009112356,75.73102867,99.612,99.521,140.8355]
[1770009112658,75.73102867,99.61,99.526,9.0532]
[1770009114356,140.7332,99.594,99.501,400.94]
[1770009114556,75.73102867,99.586,99.49,140.8786]
[1770009115055,140.7431,99.587,99.498,9.0557]
[1770009115056,84.77942867,99.579,99.498,9.0557]
[1770009115259,75.73102867,99.579,99.498,9.0557]
[1770009116555,75.73102867,99.579,99.484,9.057]
[1770009116753,75.73102867,99.579,99.487,140.8827]
[1770009117654,75.73102867,99.579,99.494,9.0561]
[1770009118453,75.73102867,99.579,99.494,149.9296]
[1770009119857,75.73102867,99.579,99.494,9.0561]
[1770009120357,75.73102867,99.579,99.506,9.055]
[1770009120551,75.73102867,99.556,99.459,140.923]
[1770009120753,75.73102867,99.539,99.452,149.9929]
[1770009121355,75.73102867,99.537,99.452,149.9929]
[1770009121558,75.73102867,99.537,99.464,9.0588]
[1770009122457,75.73102867,99.537,99.475,9.0578]
[1770009122656,75.73102867,99.56,99.491,140.8772]
[1770009123158,75.73102867,99.56,99.5,9.0556]
[1770009123355,75.73102867,99.56,99.486,140.8848]
[1770009123555,75.73102867,99.583,99.477,18.57132897]
[1770009123760,75.73102867,99.583,99.456,422.7804]
[1770009123761,75.73102867,99.583,99.527,140.827]
[1770009123955,75.73102867,99.583,99.517,140.8411]
[1770009124260,75.73102867,99.583,99.489,18.57132897]
[1770009124261,8.39665241,99.64,99.551,140.792]
[1770009124563,8.39665241,99.64,99.521,140.8346]
[1770009124564,75.71601472,99.631,99.557,140.7845]
[1770009125161,75.71601472,99.631,99.566,149.8209]
[1770009125661,75.71601472,99.631,99.566,9.0495]
[1770009126254,75.6445511,99.655,99.575,9.0487]
[1770009126455,75.6445511,99.655,99.581,140.7499]
[1770009126661,75.6445511,99.655,99.587,140.7413]
[1770009126855,75.6445511,99.655,99.569,400.96]
[1770009127059,75.6445511,99.655,99.561,140.7781]
[1770009127260,75.6445511,99.633,99.53,8.39665241]
[1770009127462,75.6445511,99.633,99.524,400.92]
[1770009127664,75.6445511,99.633,99.548,9.0512]
[1770009127965,75.64370736,99.626,99.531,140.82]
[1770009128165,75.64370736,99.626,99.534,9.0524]
[1770009129469,75.64370736,99.618,99.534,9.0524]
[1770009129964,75.64370736,99.618,99.524,400.92]
[1770009129965,75.64370736,99.618,99.549,9.051]
[1770009130164,75.64370736,99.618,99.533,140.8175]
[1770009130565,75.64370736,99.618,99.549,9.0511]
[1770009130966,75.64370736,99.618,99.556,140.7853]
[1770009131558,75.64370736,99.618,99.551,140.7918]
[1770009131762,75.64370736,99.618,99.537,140.8119]
[1770009131960,75.64370736,99.618,99.556,140.7854]
[1770009132163,9.0405,99.667,99.58,9.0483]
[1770009132360,149.6706,99.667,99.58,9.0483]
[1770009132664,140.6399,99.66,99.564,140.7739]
[1770009132966,9.0417,99.653,99.567,9.0494]
[1770009133164,140.6537,99.65,99.567,9.0494]
[1770009133966,140.6537,99.65,99.553,400.88]
[1770009133967,1.74682572,99.677,99.553,400.88]
[1770009134164,67.9054661,99.681,99.607,140.7138]
[1770009134362,67.9054661,99.669,99.59,400.84]
[1770009134563,67.9054661,99.669,99.57,8.39665241]
[1770009134564,67.9054661,99.665,99.599,140.7253]
[1770009134764,67.9054661,99.665,99.583,140.7473]
[1770009134963,67.9054661,99.665,99.572,140.763]
[1770009135165,67.9054661,99.665,99.598,140.7258]
[1770009135573,67.9054661,99.665,99.588,140.7399]
[1770009135766,67.9054661,99.665,99.609,140.71]
[1770009135966,104.63322788,99.67,99.602,140.7205]
[1770009136462,104.63322788,99.67,99.591,140.7364]
[1770009136463,67.88322788,99.669,99.591,140.7364]
[1770009137067,67.88322788,99.669,99.602,9.0463]
[1770009138270,67.91322445,99.654,99.573,140.7611]
[1770009138468,67.91322445,99.649,99.543,140.8043]
[1770009138772,67.91322445,99.63,99.561,9.05]
[1770009139764,3.03494961,99.562,99.464,140.9157]
[1770009139974,3.03494961,99.562,99.476,3.49575646]
[1770009140168,3.03494961,99.595,99.506,3.49575646]
[1770009140567,140.7158,99.606,99.506,3.49575646]
[1770009140568,3.03494961,99.585,99.506,3.49575646]
[1770009140875,3.03494961,99.585,99.512,3.49575646]
[1770009141072,3.03494961,99.656,99.556,140.7857]
[1770009141268,36.75,99.67,99.587,3.49575646]
[1770009141472,36.75,99.67,99.603,3.49575646]
[1770009142274,36.75,99.67,99.604,9.0461]
[1770009142475,36.75,99.67,99.616,3.49575646]
[1770009142672,36.75,99.67,99.622,3.49575646]
[1770009143678,36.75,99.67,99.629,9.0438]
[1770009145280,19.30269116,99.67,99.629,9.0438]
[1770009145479,9.116e-05,99.67,99.629,9.0438]
[1770009145679,9.116e-05,99.67,99.629,149.7255]
[1770009146178,9.116e-05,99.67,99.622,3.49575646]
[1770009146488,9.116e-05,99.67,99.596,144.22515646]
[1770009146774,9.116e-05,99.67,99.601,9.0464]
[1770009146977,3.0857964,99.67,99.596,3.49575646]
[1770009147583,3.0857964,99.67,99.601,140.7224]
[1770009147784,3.0857964,99.67,99.601,144.21815646]
[1770009148180,3.0876187,99.707,99.626,140.6864]
[1770009148377,3.0876187,99.707,99.631,140.6794]
[1770009148576,140.5469,99.726,99.631,140.6794]
[1770009148577,140.5469,99.726,99.632,3.49575646]
[1770009148780,3.0876187,99.755,99.663,140.6338]
[1770009148979,3.0876187,99.755,99.66,3.49575646]
[1770009149176,3.0876187,99.744,99.661,9.0409]
[1770009149378,140.5037,99.757,99.645,140.6595]
[1770009149379,3.0876187,99.732,99.645,140.6595]
[1770009149580,3.0876187,99.732,99.64,140.6667]
[1770009149985,3.0876187,99.732,99.634,3.49575646]
[1770009149986,3.00840771,99.728,99.634,3.49575646]
[1770009150177,3.00840771,99.726,99.634,3.49575646]
[1770009150375,3.00840771,99.726,99.64,153.20495646]
[1770009150580,3.00840771,99.726,99.619,140.6968]
[1770009150581,3.00840771,99.716,99.619,140.6968]
[1770009150782,3.00840771,99.71,99.619,140.6968]
[1770009151089,3.00840771,99.707,99.621,9.0445]
[1770009151480,3.00840771,99.696,99.616,404.11575646]
[1770009151886,3.00840771,99.696,99.62,140.6953]
[1770009152082,9.0362,99.714,99.63,144.17705646]
[1770009152283,9.0362,99.714,99.631,3.49575646]
[1770009152988,2.85236902,99.714,99.638,3.49575646]
[1770009153193,2.85236902,99.704,99.612,3.49575646]
[1770009153590,2.85236902,99.704,99.621,140.6933]
[1770009154190,2.85236902,99.704,99.628,3.49575646]
[1770009154492,2.85236902,99.704,99.629,140.6827]
[1770009154700,2.85236902,99.704,99.63,140.6807]
[1770009154890,2.85236902,99.704,99.632,9.0435]
[1770009155490,11.88946902,99.704,99.628,3.49575646]
[1770009156599,2.8549265,99.703,99.628,3.49575646]
[1770009156799,2.8549265,99.703,99.629,9.0438]
[1770009157193,2.8549265,99.703,99.633,140.677]
[1770009157800,2.85115328,99.728,99.645,3.76867319]
[1770009158397,9.07704763,99.846,99.62,3.76867319]
[1770009158398,140.5691,99.71,99.62,3.76867319]
[1770009158593,2.85115328,99.701,99.62,3.76867319]
[1770009158794,2.85115328,99.697,99.62,3.76867319]
[1770009159096,2.85115328,99.658,99.574,3.76867319]
[1770009159400,140.6265,99.669,99.574,3.76867319]
[1770009159401,2.85115328,99.65,99.574,3.76867319]
[1770009160396,2.84618753,99.645,99.574,3.76867319]
[1770009160599,2.84618753,99.633,99.55,3.76867319]
[1770009160900,140.6703,99.638,99.55,3.76867319]
[1770009160901,2.84618753,99.631,99.55,3.76867319]
[1770009161096,2.84618753,99.631,99.511,140.8497]
[1770009161097,2.84618753,99.609,99.527,3.76867319]
[1770009161290,2.84618753,99.607,99.534,140.8163]
[1770009161600,2.84618753,99.607,99.527,3.76867319]
[1770009161601,2.84618753,99.607,99.535,140.8151]
[1770009161795,2.84618753,99.607,99.542,140.8057]
[1770009161996,2.86213472,99.634,99.56,140.7797]
[1770009162192,272.4,99.64,99.568,3.76867319]
[1770009162394,272.4,99.64,99.567,140.7701]
[1770009162395,2.86213472,99.659,99.587,140.742]
[1770009162694,2.86213472,99.682,99.616,9.045]
[1770009163093,2.86213472,99.682,99.616,149.745]
[1770009163295,2.86213472,99.682,99.601,9.0463]
[1770009163993,2.86213472,99.682,99.61,9.0456]
[1770009164197,2.77182444,99.68,99.597,3.76867319]
[1770009166097,2.77182444,99.68,99.575,140.7579]
[1770009166098,2.75743232,99.674,99.581,9.0482]
[1770009166803,2.75743232,99.667,99.581,149.7989]
[1770009167193,2.75743232,99.667,99.592,9.0472]
[1770009167401,2.75743232,99.667,99.592,149.7822]
[1770009168302,2.75743232,99.667,99.582,3.67701645]
[1770009169798,2.75743232,99.667,99.56,159.35102897]
[1770009170000,2.63022977,99.628,99.552,18.57132897]
[1770009170300,2.63022977,99.626,99.537,3.67701645]
[1770009171005,140.6756,99.635,99.537,3.67701645]
[1770009171006,2.63022977,99.623,99.537,3.67701645]
[1770009171402,2.63022977,99.62,99.537,3.67701645]
[1770009171599,140.6947,99.621,99.514,12.73121645]
[1770009171600,2.63022977,99.599,99.514,12.73121645]
[1770009172004,2.66875343,99.589,99.514,3.67701645]
[1770009172204,2.66875343,99.583,99.498,149.9224]
[1770009173201,2.66875343,99.583,99.504,9.0552]
[1770009173398,2.66875343,99.583,99.514,140.8452]
[1770009173599,2.66875343,99.583,99.514,144.52221645]
[1770009174106,2.66875343,99.583,99.498,140.8667]
[1770009174107,2.67941222,99.609,99.525,140.8293]
[1770009174408,2.67941222,99.609,99.525,9.0533]
[1770009174806,2.67941222,99.606,99.525,9.0533]
[1770009177807,2.67941222,99.606,99.537,9.0522]
[1770009178306,2.64620845,99.602,99.522,3.67701645]
[1770009178901,9.0465,99.6,99.524,3.67701645]
[1770009179205,2.64620845,99.602,99.525,140.8299]
[1770009179410,2.64620845,99.602,99.526,3.67701645]
[1770009180107,2.64620845,99.602,99.535,9.0524]
[1770009180406,2.64620845,99.602,99.526,3.67701645]
[1770009180602,2.75370364,99.599,99.495,3.67701645]
[1770009180807,2.75370364,99.597,99.507,9.0549]
[1770009181107,2.75370364,99.597,99.508,3.67701645]
[1770009181303,2.75370364,99.597,99.517,3.67701645]
[1770009181508,2.75370364,99.647,99.568,140.7688]
[1770009181705,2.75370364,99.67,99.592,3.67701645]
[1770009182003,140.5549,99.72,99.626,140.6869]
[1770009182004,2.76337941,99.699,99.626,140.6869]
[1770009182206,2.76337941,99.699,99.616,3.67701645]
[1770009182407,2.76337941,99.689,99.616,3.67701645]
[1770009182703,2.76337941,99.689,99.605,3.67701645]
[1770009182908,2.76337941,99.687,99.605,3.67701645]
[1770009183301,2.76337941,99.687,99.607,140.7137]
[1770009183502,2.76337941,99.714,99.642,3.67701645]
[1770009183811,2.71903929,99.721,99.631,3.67701645]
[1770009184202,2.71903929,99.721,99.633,3.67701645]
[1770009184397,2.71903929,99.705,99.633,3.67701645]
[1770009184605,2.71903929,99.694,99.604,3.67701645]
[1770009184799,9.0385,99.689,99.606,3.67701645]
[1770009185001,2.71903929,99.677,99.582,3.67701645]
[1770009185200,2.71903929,99.677,99.585,3.67701645]
[1770009185404,9.0396,99.676,99.586,3.67701645]
[1770009185607,2.71903929,99.677,99.6,3.67701645]
[1770009185806,2.71903929,99.677,99.599,140.7248]
[1770009185807,2.71908977,99.702,99.612,3.67701645]
[1770009186205,2.71908977,99.702,99.619,140.6961]
[1770009186402,2.71908977,99.702,99.615,140.7021]
[1770009186403,2.71908977,99.702,99.633,3.67701645]
[1770009187012,2.71908977,99.726,99.646,3.67701645]
[1770009187208,2.71908977,99.726,99.649,9.042]
[1770009187809,2.71908977,99.726,99.649,12.58304535]
[1770009188015,2.71908977,99.726,99.649,3.54104535]
[1770009188213,2.75133651,99.722,99.649,3.54104535]
[1770009188707,2.75133651,99.717,99.622,3.54104535]
[1770009189110,2.75133651,99.717,99.627,3.54104535]
[1770009189310,2.75133651,99.717,99.633,153.26164535]
[1770009189707,2.75133651,99.717,99.633,12.58454535]
[1770009189910,9.0348,99.729,99.643,3.54104535]
[1770009190108,2.75603921,99.728,99.643,3.54104535]
[1770009190710,2.75603921,99.713,99.616,3.54104535]
[1770009191308,2.75603921,99.698,99.616,3.54104535]
[1770009191512,2.75603921,99.689,99.616,3.54104535]
[1770009191710,9.0386,99.687,99.616,3.54104535]
[1770009191915,2.75603921,99.689,99.616,3.54104535]
[1770009192109,2.81589262,99.682,99.593,3.54104535]
[1770009192310,2.81589262,99.682,99.6,3.54104535]
[1770009193017,2.81589262,99.68,99.6,3.54104535]
[1770009193415,9.0393,99.679,99.6,3.54104535]
[1770009193816,11.86366232,99.679,99.6,3.54104535]
[1770009194118,2.82436232,99.679,99.602,3.54104535]
[1770009194313,2.82436232,99.679,99.606,3.54104535]
[1770009194715,140.6239,99.671,99.583,3.54104535]
[1770009194932,2.82436232,99.663,99.583,3.54104535]
[1770009195412,2.82436232,99.662,99.583,3.54104535]
[1770009195807,2.86197368,99.652,99.583,3.54104535]
[1770009196008,2.86197368,99.638,99.559,3.54104535]
[1770009196208,2.86197368,99.632,99.559,3.54104535]
[1770009196809,9.0437,99.631,99.559,3.54104535]
[1770009197014,2.86197368,99.632,99.559,3.54104535]
[1770009197213,9.0437,99.631,99.559,3.54104535]
[1770009197521,2.86197368,99.632,99.559,3.54104535]
[1770009198216,2.86650349,99.656,99.574,3.54104535]
[1770009198413,2.86650349,99.656,99.565,140.7721]
[1770009198414,2.86650349,99.656,99.579,3.54104535]
[1770009198620,2.86650349,99.656,99.581,3.54104535]
[1770009198914,2.86650349,99.656,99.582,3.54104535]
[1770009199218,2.86650349,99.678,99.597,3.54104535]
[1770009199620,2.86650349,99.662,99.573,3.54104535]
[1770009199821,2.86977054,99.654,99.573,3.54104535]
[1770009201313,2.86977054,99.646,99.573,3.54104535]
[1770009201917,2.8651669,99.612,99.515,3.54104535]
[1770009202316,9.0463,99.603,99.519,3.54104535]
[1770009202515,140.7118,99.609,99.519,3.54104535]
[1770009202516,2.8651669,99.599,99.519,3.54104535]
[1770009203228,9.0478,99.586,99.519,3.54104535]
[1770009203616,11.9129669,99.586,99.519,3.54104535]
[1770009204020,2.8651669,99.586,99.519,3.54104535]
[1770009204319,2.8651669,99.586,99.478,18.55358988]
[1770009204320,3.06162442,99.617,99.53,3.54104535]
[1770009204523,3.06162442,99.617,99.534,3.54104535]
[1770009205427,9.0451,99.616,99.534,3.54104535]
[1770009206018,9.0451,99.616,99.537,9.0522]
[1770009206523,9.0451,99.616,99.538,3.54104535]
[1770009207423,3.01284709,99.602,99.511,3.54104535]
[1770009208526,3.01284709,99.602,99.513,3.54104535]
[1770009208727,400.72,99.61,99.53,3.54104535]
[1770009209226,12.02820799,99.607,99.53,3.54104535]
[1770009209629,9.0467,99.598,99.53,3.54104535]
[1770009211222,2.98230799,99.606,99.53,3.54104535]
[1770009211727,400.76,99.623,99.547,3.54104535]
[1770009211930,9.044,99.627,99.547,3.54104535]
[1770009212533,2.83327888,99.653,99.563,3.54104535]
[1770009212828,2.83327888,99.653,99.568,3.54104535]
[1770009213791,2.5623046,99.679,99.587,3.54104535]
[1770009214230,140.678,99.633,99.56,3.54104535]
[1770009214430,2.5623046,99.632,99.56,3.54104535]
[1770009214728,9.0438,99.63,99.56,3.54104535]
[1770009214930,2.5623046,99.632,99.56,3.54104535]
[1770009215233,140.6852,99.628,99.56,3.54104535]
[1770009215433,2.5623046,99.618,99.537,3.54104535]
[1770009217029,2.53542223,99.593,99.512,3.54104535]
[1770009217234,2.53542223,99.561,99.49,3.54104535]
[1770009217426,2.53542223,99.561,99.467,3.54104535]
[1770009217736,9.0507,99.554,99.471,9.0582]
[1770009217931,140.7911,99.553,99.467,3.54104535]
[1770009218134,2.80563039,99.556,99.467,3.54104535]
[1770009218348,2.80563039,99.554,99.467,3.54104535]
[1770009218635,140.7808,99.56,99.445,3.43840684]
[1770009218636,2.80563039,99.521,99.445,3.43840684]
[1770009219029,2.80563039,99.516,99.445,3.43840684]
[1770009220637,2.80563039,99.516,99.424,9.0624]
[1770009220638,2.82087475,99.509,99.425,3.43840684]
[1770009221137,2.82087475,99.509,99.427,3.43840684]
[1770009222439,2.9491488,99.492,99.399,3.43840684]
[1770009223342,9.0564,99.491,99.399,3.43840684]
[1770009223545,12.0055488,99.491,99.399,3.43840684]
[1770009223737,11.37950762,99.49,99.399,3.43840684]
[1770009223936,11.37950762,99.49,99.402,3.43840684]
[1770009224643,2.98709871,99.49,99.402,3.43840684]
[1770009225243,9.055,99.507,99.42,3.43840684]
[1770009225842,2.98709871,99.523,99.432,3.43840684]
[1770009227235,3.00904549,99.522,99.432,3.43840684]
[1770009227536,3.00904549,99.522,99.431,140.9623]
[1770009227537,3.00904549,99.522,99.442,3.58016547]
[1770009229048,3.00904549,99.522,99.444,3.58016547]
[1770009229442,3.00904549,99.522,99.449,9.0601]
[1770009229745,3.00904549,99.522,99.45,3.58016547]
[1770009230144,3.00904549,99.522,99.428,3.58016547]
[1770009230545,2.98672014,99.506,99.428,3.58016547]
[1770009231346,2.98672014,99.504,99.409,9.0638]
[1770009231651,2.98672014,99.486,99.402,3.58016547]
[1770009231951,2.98624588,99.499,99.404,3.58016547]
[1770009232147,541.9811,99.503,99.417,3.58016547]
[1770009232148,2.98624588,99.497,99.417,3.58016547]
[1770009232647,401.12,99.503,99.428,140.9662]
[1770009232847,2.98624588,99.52,99.434,3.58016547]
[1770009233041,2.98624588,99.516,99.434,3.58016547]
[1770009233240,140.8274,99.527,99.434,3.58016547]
[1770009233241,140.8586,99.505,99.434,3.58016547]
[1770009233546,2.98624588,99.5,99.434,3.58016547]
[1770009233846,2.9857614,99.479,99.409,3.58016547]
[1770009234551,401.14,99.488,99.409,3.58016547]
[1770009235244,2.9857614,99.481,99.409,3.58016547]
[1770009235445,2.9857614,99.476,99.409,3.58016547]
[1770009235748,2.9857614,99.476,99.378,3.58016547]
[1770009235945,9.0591,99.462,99.386,3.58016547]
[1770009236149,3.00635382,99.46,99.386,3.58016547]
[1770009238747,9.0594,99.459,99.386,3.58016547]
[1770009240250,9.0603,99.448,99.386,3.58016547]
[1770009240455,2.90106272,99.458,99.386,3.58016547]
[1770009240757,401.28,99.464,99.387,3.58016547]
[1770009241048,2.90106272,99.475,99.387,3.58016547]
[1770009241254,2.90106272,99.469,99.387,3.58016547]
[1770009241456,2.90106272,99.469,99.394,3.58016547]
[1770009242353,9.0586,99.468,99.394,3.58016547]
[1770009242552,2.90106272,99.469,99.399,141.0084]
[1770009242757,2.91010737,99.511,99.43,3.58016547]
[1770009242956,140.8083,99.541,99.409,140.9933]
[1770009242957,2.91010737,99.539,99.453,3.58016547]
[1770009243255,2.91010737,99.539,99.461,3.58016547]
[1770009243659,2.91010737,99.561,99.48,3.58016547]
[1770009244256,2.91010737,99.561,99.495,9.056]
[1770009244457,2.92280434,99.585,99.499,3.58016547]
[1770009245060,400.18,99.595,99.529,3.58016547]
[1770009245261,2.92280434,99.639,99.545,3.58016547]
[1770009245463,2.92280434,99.622,99.545,3.58016547]
[1770009246169,2.69186173,99.616,99.523,3.58016547]
[1770009247563,9.0452,99.614,99.523,3.58016547]
[1770009247760,9.0452,99.614,99.524,9.0534]
[1770009247964,9.0452,99.614,99.525,3.5950908]
[1770009248163,2.69186173,99.616,99.531,3.5950908]
[1770009249170,2.67521097,99.639,99.546,3.5950908]
[1770009249368,2.67521097,99.639,99.549,3.5950908]
[1770009249564,2.67521097,99.639,99.554,3.5950908]
[1770009250163,9.0432,99.637,99.554,3.5950908]
[1770009250358,2.52742762,99.624,99.554,3.5950908]
[1770009251969,2.51231083,99.617,99.525,3.5950908]
[1770009252668,9.0452,99.615,99.528,3.5950908]
[1770009253869,9.0437,99.631,99.543,3.5950908]
[1770009254167,11.56902824,99.631,99.543,3.5950908]
[1770009254367,2.52532824,99.63,99.543,3.5950908]
[1770009254569,2.52532824,99.628,99.544,3.5950908]
[1770009255974,9.0443,99.624,99.544,3.5950908]
[1770009256160,11.57410939,99.624,99.544,3.5950908]
[1770009257271,2.52980939,99.624,99.547,3.5950908]
[1770009257772,400.96,99.648,99.557,3.5950908]
[1770009257970,403.49020583,99.648,99.557,3.5950908]